bitfinex/quotes_BTCUSD_20240828
["timestamp","ask_amount","ask_price","bid_price","bid_amount"]
[1724847780374,2.12273373,60200.0,60199.0,1.20207756]
[1724847780577,2.12273373,60200.0,60199.0,0.86984656]
[1724847781057,2.12273373,60200.0,60199.0,0.53761556]
[1724847781474,2.12273373,60200.0,60199.0,0.86984656]
[1724847781989,2.12273373,60200.0,60199.0,0.53761556]
[1724847782512,2.12273373,60200.0,60199.0,0.86984656]
[1724847784808,2.12273373,60200.0,60199.0,0.20538456]
[1724847785035,2.12273373,60200.0,60199.0,0.03926956]
[1724847785262,2.78962237,60200.0,60199.0,0.03926956]
[1724847785517,2.62107073,60200.0,60199.0,0.03926956]
[1724847785761,2.28884573,60200.0,60199.0,0.014]
[1724847785973,2.62107073,60200.0,60199.0,0.024]
[1724847786185,2.62107073,60200.0,60199.0,0.01]
[1724847786599,2.62107073,60200.0,60199.0,0.016]
[1724847786819,2.62107073,60200.0,60199.0,0.006]
[1724847787032,2.62107073,60200.0,60196.0,0.0008998]
[1724847787033,0.166118,60198.0,60196.0,0.0008998]
[1724847787241,0.1438,60197.0,60196.0,0.0008998]
[1724847787861,0.16984484,60197.0,60196.0,0.0008998]
[1724847788274,0.16984484,60197.0,60196.0,0.0109699]
[1724847788489,0.33596584,60197.0,60196.0,0.0109699]
[1724847788906,0.33696584,60197.0,60196.0,0.0008998]
[1724847789317,0.17084484,60197.0,60196.0,0.0008998]
[1724847789522,0.17340394,60197.0,60196.0,0.0008998]
[1724847789725,0.33952494,60197.0,60196.0,0.0008998]
[1724847790377,0.34252494,60197.0,60196.0,0.0008998]
[1724847790598,0.67476694,60197.0,60196.0,0.0008998]
[1724847791881,1.00700894,60197.0,60196.0,0.0008998]
[1724847792094,0.67476694,60197.0,60196.0,0.0008998]
[1724847795374,0.34252494,60197.0,60196.0,0.0008998]
[1724847795795,0.67476694,60197.0,60196.0,0.0008998]
[1724847797739,0.17640394,60197.0,60196.0,0.0008998]
[1724847799042,0.17640394,60197.0,60196.0,0.0109699]
[1724847799467,0.17640394,60197.0,60196.0,0.0008998]
[1724847800125,0.17384484,60197.0,60196.0,0.1670228]
[1724847800349,0.17384484,60197.0,60196.0,0.0008998]
[1724847800577,0.17640394,60197.0,60196.0,0.0008998]
[1724847802158,0.17384484,60197.0,60196.0,0.1670228]
[1724847802589,0.17384484,60197.0,60196.0,0.4992698]
[1724847802801,0.17384484,60197.0,60196.0,0.8315168]
[1724847803004,0.17384484,60197.0,60196.0,0.84168335]
[1724847803408,0.1478,60197.0,60196.0,0.84168335]
[1724847804297,0.1448,60197.0,60196.0,0.84168335]
[1724847804739,0.1468,60197.0,60196.0,0.84168335]
[1724847805171,0.1438,60197.0,60196.0,0.84168335]
[1724847805377,0.1448,60197.0,60196.0,0.84168335]
[1724847805753,0.1438,60197.0,60196.0,0.84168335]
[1724847805984,0.1438,60197.0,60196.0,0.84468335]
[1724847806154,0.16984551,60197.0,60196.0,0.84468335]
[1724847815939,0.09134551,60197.0,60196.0,0.84468335]
[1724847816374,0.02604551,60197.0,60196.0,1.17693035]
[1724847816592,0.02604551,60197.0,60196.0,1.19037174]
[1724847817230,0.02604551,60197.0,60196.0,1.26687174]
[1724847818514,0.02604551,60197.0,60196.0,1.60411874]
[1724847818722,0.02604551,60197.0,60196.0,1.66911874]
[1724847818946,0.02604551,60197.0,60196.0,1.76911874]
[1724847819226,0.02604551,60197.0,60196.0,1.76611874]
[1724847819454,0.02604551,60197.0,60196.0,1.77811874]
[1724847819676,0.02604551,60197.0,60196.0,1.76611874]
[1724847819898,0.02604551,60197.0,60196.0,1.82974794]
[1724847820315,0.02604551,60197.0,60196.0,1.82174794]
[1724847820533,0.02604551,60197.0,60196.0,1.83574794]
[1724847822597,0.02604551,60197.0,60196.0,1.83576018]
[1724847823863,0.02604551,60197.0,60196.0,1.835764]
[1724847824392,0.02604551,60197.0,60196.0,1.78611874]
[1724847824591,0.02604551,60197.0,60196.0,1.8357679]
[1724847825462,0.000819,60199.0,60198.0,1.495062]
[1724847825674,0.000819,60199.0,60198.0,1.79420542]
[1724847826055,0.000819,60199.0,60198.0,1.75462324]
[1724847826527,0.000819,60199.0,60198.0,2.10985924]
[1724847826778,0.000819,60199.0,60198.0,2.57776044]
[1724847827002,0.000819,60199.0,60198.0,2.60258308]
[1724847827478,0.000819,60199.0,60198.0,2.49146991]
[1724847827704,0.000819,60199.0,60198.0,2.78895116]
[1724847827945,0.000819,60199.0,60198.0,2.65193068]
[1724847828178,0.000819,60199.0,60198.0,2.77595116]
[1724847828412,0.000819,60199.0,60198.0,3.01060669]
[1724847828644,1e-08,60199.0,60198.0,3.06951349]
[1724847829129,1e-08,60199.0,60198.0,3.05751349]
[1724847829652,1e-08,60199.0,60198.0,3.07151349]
[1724847829866,1e-08,60199.0,60198.0,3.05751349]
[1724847830070,1e-08,60199.0,60198.0,3.07151349]
[1724847830299,1e-08,60199.0,60198.0,3.08551349]
[1724847830509,1e-08,60199.0,60198.0,3.05552668]
[1724847830717,1e-08,60199.0,60198.0,3.05596342]
[1724847831140,1e-08,60199.0,60198.0,3.06796342]
[1724847832481,1e-08,60199.0,60198.0,3.19176216]
[1724847832690,1e-08,60199.0,60198.0,2.68691601]
[1724847832891,1e-08,60199.0,60198.0,3.12977959]
[1724847833131,1e-08,60199.0,60198.0,2.68691601]
[1724847833700,1e-08,60199.0,60198.0,2.73643998]
[1724847834275,1e-08,60199.0,60198.0,2.68691601]
[1724847834486,1e-08,60199.0,60198.0,2.68891601]
[1724847834688,1e-08,60199.0,60198.0,2.73843345]
[1724847835403,1e-08,60199.0,60198.0,2.73643345]
[1724847837748,1e-08,60199.0,60198.0,2.70507345]
[1724847838383,1e-08,60199.0,60198.0,2.70506054]
[1724847838836,1e-08,60199.0,60198.0,2.73642054]
[1724847839041,1e-08,60199.0,60198.0,2.67691601]
[1724847839241,1e-08,60199.0,60198.0,2.68691601]
[1724847840655,1e-08,60199.0,60198.0,2.68891601]
[1724847841035,1e-08,60199.0,60198.0,2.75317281]
[1724847841235,1e-08,60199.0,60198.0,3.13173827]
[1724847841444,1e-08,60199.0,60198.0,3.12173469]
[1724847842029,1e-08,60199.0,60198.0,2.69135342]
[1724847842279,1e-08,60199.0,60198.0,2.73641797]
[1724847842729,1e-08,60199.0,60198.0,2.68691601]
[1724847843344,1e-08,60199.0,60198.0,2.67691601]
[1724847843553,1e-08,60199.0,60198.0,2.68691601]
[1724847843964,1e-08,60199.0,60198.0,2.74506393]
[1724847844173,1e-08,60199.0,60198.0,2.70134869]
[1724847844379,1e-08,60199.0,60198.0,2.68891601]
[1724847844557,1e-08,60199.0,60198.0,2.71688453]
[1724847844754,1e-08,60199.0,60198.0,2.70288453]
[1724847844954,1e-08,60199.0,60198.0,2.68888405]
[1724847845533,1e-08,60199.0,60198.0,2.70288405]
[1724847845763,1e-08,60199.0,60198.0,2.68888405]
[1724847846111,1e-08,60199.0,60198.0,2.70288405]
[1724847846766,1e-08,60199.0,60198.0,2.71488405]
[1724847846919,1e-08,60199.0,60198.0,2.09904972]
[1724847847118,1e-08,60199.0,60198.0,2.08004972]
[1724847847397,1e-08,60199.0,60198.0,2.07261924]
[1724847847611,1e-08,60199.0,60198.0,2.09905208]
[1724847848050,1e-08,60199.0,60198.0,2.07105208]
[1724847848242,1e-08,60199.0,60198.0,2.19966769]
[1724847848443,1e-08,60199.0,60198.0,2.22266769]
[1724847848644,1e-08,60199.0,60198.0,2.20866769]
[1724847849078,1e-08,60199.0,60198.0,2.28916769]
[1724847849298,1e-08,60199.0,60198.0,2.78086446]
[1724847849528,1e-08,60199.0,60198.0,2.83140202]
[1724847849907,1e-08,60199.0,60198.0,2.81740202]
[1724847850133,1e-08,60199.0,60198.0,2.83140202]
[1724847850575,1.87836474,60200.0,60199.0,0.05036]
[1724847850782,0.16892978,60234.0,60214.0,0.349148]
[1724847850986,0.16892978,60234.0,60224.0,0.67776047]
[1724847851194,0.16892978,60234.0,60224.0,1.51247508]
[1724847851404,0.10242978,60234.0,60224.0,2.77692861]
[1724847851614,0.10242978,60234.0,60230.0,0.99312561]
[1724847851823,0.10242978,60234.0,60230.0,1.70024638]
[1724847852058,0.10242978,60234.0,60230.0,2.60987286]
[1724847852279,0.10242978,60234.0,60230.0,1.60388871]
[1724847852486,0.14969,60231.0,60230.0,0.60770871]
[1724847852884,0.14969,60231.0,60230.0,0.93976871]
[1724847853102,0.14969,60231.0,60230.0,0.62170871]
[1724847853703,0.14969,60231.0,60230.0,0.63570871]
[1724847853907,0.14969,60231.0,60230.0,0.03761871]
[1724847854393,0.1522491,60231.0,60230.0,0.028]
[1724847854613,0.3182761,60231.0,60230.0,0.028]
[1724847854839,0.1522491,60231.0,60230.0,0.028]
[1724847855049,0.1522491,60231.0,60230.0,0.014]
[1724847855268,0.14969,60231.0,60230.0,0.028]
[1724847855472,0.14969,60231.0,60230.0,0.014]
[1724847855673,0.14969,60231.0,60230.0,0.00960562]
[1724847855829,0.01019,60231.0,60225.0,0.166042]
[1724847856047,0.0658,60226.0,60224.0,0.01357447]
[1724847856254,0.0788,60225.0,60224.0,0.17961947]
[1724847856418,0.0788,60225.0,60224.0,0.01357447]
[1724847856622,0.144,60225.0,60224.0,0.01357447]
[1724847856823,0.082,60224.0,60223.0,0.166048]
[1724847857033,0.1447,60224.0,60223.0,0.166048]
[1724847857443,0.0652591,60224.0,60220.0,0.332115]
[1724847857695,0.082,60223.0,60222.0,0.16605]
[1724847857873,0.36550338,60221.0,60220.0,0.49817]
[1724847859295,0.36550338,60221.0,60220.0,0.50517]
[1724847859506,0.36550338,60221.0,60220.0,0.49817]
[1724847859945,0.36550338,60221.0,60220.0,0.50817]
[1724847860565,0.36550338,60221.0,60220.0,0.50517]
[1724847860866,0.36550338,60221.0,60220.0,0.50817]
[1724847861860,0.36550338,60221.0,60220.0,0.840285]
[1724847862545,0.36550338,60221.0,60220.0,0.50817]
[1724847863151,0.36550338,60221.0,60220.0,0.833285]
[1724847863582,0.080119,60221.0,60220.0,0.840285]
[1724847866611,0.080119,60221.0,60220.0,1.1724]
[1724847866835,0.59547738,60221.0,60220.0,0.01]
[1724847867059,0.92758738,60221.0,60220.0,0.01]
[1724847867314,0.92758738,60221.0,60198.0,0.0009009]
[1724847867315,0.28620338,60209.0,60198.0,0.0009009]
[1724847867519,0.005819,60221.0,60198.0,0.0009009]
[1724847867520,0.0025591,60208.0,60198.0,0.0009009]
[1724847867726,0.0025591,60208.0,60199.0,0.00949878]
[1724847867727,0.0631,60204.0,60199.0,0.00949878]
[1724847867935,0.28620338,60200.0,60199.0,0.00949878]
[1724847868197,0.36440338,60200.0,60199.0,0.50784478]
[1724847869202,0.0782,60200.0,60199.0,0.84007578]
[1724847869408,0.0782,60200.0,60199.0,1.17230678]
[1724847869615,0.0637,60203.0,60202.0,0.830535]
[1724847869832,0.0637,60203.0,60202.0,1.162749]
[1724847870439,0.0637,60203.0,60202.0,1.17292891]
[1724847870621,0.0637,60203.0,60202.0,1.16892891]
[1724847871263,0.0646,60207.0,60206.0,0.166096]
[1724847871464,0.0646,60207.0,60206.0,0.498288]
[1724847871668,0.0646,60207.0,60206.0,0.83048]
[1724847871878,0.0646,60207.0,60206.0,0.84065991]
[1724847872539,0.0646,60207.0,60206.0,0.84265991]
[1724847872965,0.09063852,60207.0,60206.0,0.84265991]
[1724847873877,0.09063852,60207.0,60206.0,1.17285191]
[1724847874840,0.0656,60207.0,60206.0,1.18385191]
[1724847875047,0.0646,60207.0,60206.0,1.17285191]
[1724847875254,0.0656,60207.0,60206.0,1.18575281]
[1724847875454,0.0656,60207.0,60206.0,1.19375281]
[1724847875659,0.0646,60207.0,60206.0,1.18175281]
[1724847876208,0.145,60212.0,60211.0,0.830412]
[1724847876386,0.0629,60212.0,60211.0,0.830412]
[1724847876815,0.08893716,60212.0,60211.0,1.17275691]
[1724847877669,0.08893716,60212.0,60211.0,1.18075691]
[1724847877874,0.08893716,60212.0,60211.0,1.18475691]
[1724847878745,0.02603716,60212.0,60211.0,1.18475691]
[1724847884185,0.10203716,60212.0,60211.0,0.85259191]
[1724847884390,0.10203716,60212.0,60211.0,0.02217991]
[1724847884595,0.60283426,60212.0,60211.0,0.02217991]
[1724847884801,0.60283426,60212.0,60211.0,0.012]
[1724847884802,1.00049326,60212.0,60211.0,0.012]
[1724847885971,1.00049326,60212.0,60211.0,0.008]
[1724847886351,1.00149326,60212.0,60211.0,0.008]
[1724847887020,1.00149326,60212.0,60206.0,0.0009009]
[1724847887021,0.1441,60211.0,60206.0,0.0009009]
[1724847887235,0.0025591,60210.0,60208.0,0.166088]
[1724847887699,0.0025591,60210.0,60209.0,0.00990396]
[1724847887925,0.0025591,60210.0,60209.0,0.17599196]
[1724847888863,0.0025591,60210.0,60209.0,0.50816796]
[1724847889094,0.0025591,60210.0,60209.0,0.17599196]
[1724847889333,0.1419591,60210.0,60209.0,0.00990396]
[1724847889541,0.1419591,60210.0,60206.0,0.0009009]
[1724847889542,0.3405481,60210.0,60206.0,0.0009009]
[1724847889781,0.78448338,60207.0,60206.0,0.0009009]
[1724847890029,1.25607038,60207.0,60206.0,0.0009009]
[1724847890806,1.25607038,60207.0,60206.0,0.0059009]
[1724847891044,1.25607038,60207.0,60206.0,0.0009009]
[1724847891547,1.25607038,60207.0,60206.0,0.0019009]
[1724847891786,1.25807038,60207.0,60206.0,0.0019009]
[1724847892515,0.63968,60207.0,60206.0,0.0019009]
[1724847893668,0.63968,60207.0,60206.0,0.1679969]
[1724847893669,0.1414,60207.0,60206.0,0.1679969]
[1724847893905,0.1414,60207.0,60206.0,0.8323809]
[1724847894112,0.1414,60207.0,60206.0,0.5001889]
[1724847894531,0.1414,60207.0,60206.0,0.8323809]
[1724847898147,0.1414,60207.0,60206.0,0.5001889]
[1724847899140,0.307493,60207.0,60206.0,0.0019009]
[1724847899358,0.1439591,60207.0,60206.0,0.0019009]
[1724847899600,0.3100521,60207.0,60206.0,0.0019009]
[1724847900037,0.1439591,60207.0,60206.0,0.0019009]
[1724847900277,0.6422391,60207.0,60206.0,0.0019009]
[1724847900698,1.3116131,60207.0,60206.0,0.0019009]
[1724847900909,1.47408036,60207.0,60206.0,0.0019009]
[1724847901125,0.977322,60203.0,60202.0,0.0009009]
[1724847901333,1.26352538,60203.0,60202.0,0.0009009]
[1724847901762,1.28956936,60203.0,60202.0,0.0009009]
[1724847901988,0.95736036,60203.0,60202.0,0.0009009]
[1724847902202,1.28956936,60203.0,60202.0,0.0009009]
[1724847902826,1.7898546,60203.0,60202.0,0.0009009]
[1724847903217,1.7988546,60203.0,60202.0,0.0019009]
[1724847903568,1.63577836,60203.0,60202.0,0.0019009]
[1724847903771,1.62877836,60203.0,60202.0,0.0009009]
[1724847903935,1.64277836,60203.0,60202.0,0.0029009]
[1724847904139,1.81433,60203.0,60202.0,0.0019009]
[1724847904338,2.246539,60203.0,60202.0,0.0019009]
[1724847904538,2.270539,60203.0,60202.0,0.0019009]
[1724847904745,2.270539,60203.0,60202.0,0.0029009]
[1724847904942,0.505346,60199.0,60198.0,0.0009009]
[1724847905197,1.314708,60199.0,60198.0,0.0009009]
[1724847906269,1.312708,60199.0,60198.0,0.0009009]
[1724847907430,1.324708,60199.0,60198.0,0.0019009]
[1724847907861,1.326708,60199.0,60198.0,0.0019009]
[1724847908438,1.38501376,60199.0,60198.0,0.0029009]
[1724847911052,1.328708,60199.0,60198.0,0.0029009]
[1724847911281,0.664246,60199.0,60198.0,0.0029009]
[1724847911882,0.996477,60199.0,60198.0,0.0029009]
[1724847913194,1.333708,60199.0,60198.0,0.0029009]
[1724847916129,1.335708,60199.0,60198.0,0.0029009]
[1724847916537,1.50225964,60199.0,60198.0,0.0029009]
[1724847918843,1.333708,60199.0,60198.0,0.0029009]
[1724847920646,1.328708,60199.0,60198.0,0.0029009]
[1724847920906,1.001477,60199.0,60198.0,0.0029009]
[1724847921896,1.333708,60199.0,60198.0,0.0029009]
[1724847922128,1.001477,60199.0,60198.0,0.0029009]
[1724847922502,0.664246,60199.0,60198.0,0.0029009]
[1724847922726,0.672546,60199.0,60198.0,0.0029009]
[1724847922942,1.44648734,60199.0,60198.0,0.0029009]
[1724847923163,1.44848734,60199.0,60198.0,0.0029009]
[1724847925196,1.44648734,60199.0,60198.0,0.0029009]
[1724847926875,1.44648734,60199.0,60182.0,0.0008998]
[1724847926876,0.166159,60183.0,60182.0,0.0008998]
[1724847927089,1.11955948,60183.0,60182.0,0.0008998]
[1724847927304,1.11955948,60183.0,60182.0,0.0082082]
[1724847927544,1.11955948,60183.0,60182.0,0.00821982]
[1724847927782,1.1456103,60183.0,60182.0,0.0008998]
[1724847929209,0.4819723,60183.0,60182.0,0.0098998]
[1724847929645,0.8142913,60183.0,60182.0,0.0098998]
[1724847929883,1.1466103,60183.0,60182.0,0.0098998]
[1724847930336,1.1476103,60183.0,60182.0,0.0098998]
[1724847930800,0.8152913,60183.0,60182.0,0.0098998]
[1724847931518,1.1476103,60183.0,60182.0,0.0098998]
[1724847931730,0.8152913,60183.0,60182.0,0.0098998]
[1724847931965,1.2974103,60183.0,60182.0,0.0098998]
[1724847932153,1.6317293,60183.0,60182.0,0.0098998]
[1724847932880,1.6317293,60183.0,60160.0,0.0763]
[1724847932881,0.0822,60175.0,60160.0,0.0763]
[1724847933107,0.01,60179.0,60160.0,0.0763]
[1724847933108,0.78486438,60161.0,60160.0,0.0763]
[1724847933800,0.78486438,60161.0,60159.0,0.009009]
[1724847933801,0.498669,60160.0,60159.0,0.009009]
[1724847934692,0.166223,60160.0,60159.0,0.009009]
[1724847934935,0.1687821,60160.0,60159.0,0.009009]
[1724847935140,0.0025591,60160.0,60159.0,0.009009]
[1724847935562,0.0025591,60160.0,60159.0,0.175235]
[1724847935773,0.31326186,60161.0,60160.0,0.498669]
[1724847935774,0.02605848,60161.0,60160.0,0.498669]
[1724847935987,0.02605848,60161.0,60160.0,0.579969]
[1724847936188,0.02605848,60161.0,60160.0,0.912415]
[1724847936525,0.02605848,60161.0,60160.0,1.308961]
[1724847937129,0.02705848,60161.0,60160.0,1.308961]
[1724847937342,0.02705848,60161.0,60160.0,1.641407]
[1724847938330,0.02805848,60161.0,60160.0,1.641407]
[1724847938489,0.02705848,60161.0,60160.0,1.641407]
[1724847938696,0.02705848,60161.0,60160.0,2.073853]
[1724847938895,0.00100001,60161.0,60160.0,2.073853]
[1724847939106,1e-08,60161.0,60160.0,2.073853]
[1724847939303,1e-08,60161.0,60160.0,1.741407]
[1724847939501,0.00100001,60161.0,60160.0,1.741407]
[1724847939705,0.001,60161.0,60160.0,1.741407]
[1724847939904,0.002,60161.0,60160.0,1.741407]
[1724847940464,0.002,60161.0,60160.0,2.073853]
[1724847940680,0.002,60161.0,60160.0,2.096853]
[1724847942460,0.002,60161.0,60160.0,2.14633476]
[1724847942840,0.002,60161.0,60160.0,2.103853]
[1724847943178,0.002,60161.0,60160.0,2.17807565]
[1724847943390,0.0025591,60185.0,60184.0,0.498471]
[1724847943646,0.28620338,60186.0,60185.0,0.166154]
[1724847943851,0.28876248,60186.0,60185.0,0.498462]
[1724847944052,0.28620338,60186.0,60185.0,0.498462]
[1724847944263,0.28620338,60186.0,60185.0,0.166154]
[1724847945260,0.28620338,60186.0,60181.0,0.166164]
[1724847945261,0.166154,60185.0,60181.0,0.166164]
[1724847945465,0.33776363,60186.0,60182.0,0.166161]
[1724847945466,0.0025591,60184.0,60182.0,0.166161]
[1724847945683,0.0025591,60184.0,60180.0,0.332334]
[1724847945866,0.11060995,60184.0,60181.0,0.166163]
[1724847946276,0.11060995,60184.0,60182.0,0.00773371]
[1724847946585,0.11060995,60184.0,60182.0,0.17389471]
[1724847946789,0.11060995,60184.0,60182.0,0.17489471]
[1724847946964,0.11460995,60184.0,60182.0,0.00773371]
[1724847947378,0.11460995,60184.0,60182.0,0.17389571]
[1724847947782,0.11460995,60184.0,60182.0,0.00773371]
[1724847947976,0.11060995,60184.0,60182.0,0.00773371]
[1724847948219,0.11060995,60184.0,60180.0,0.166165]
[1724847948410,0.11060995,60184.0,60183.0,0.00773371]
[1724847948751,0.11060995,60184.0,60180.0,0.166165]
[1724847949253,0.11060995,60184.0,60181.0,0.17389871]
[1724847949399,0.11360995,60184.0,60182.0,0.166162]
[1724847949606,0.03160995,60184.0,60183.0,0.166159]
[1724847949802,0.03160995,60184.0,60183.0,0.498478]
[1724847950032,0.02860995,60184.0,60183.0,0.50621171]
[1724847950202,0.03160995,60184.0,60183.0,0.50621171]
[1724847950954,0.03160995,60184.0,60183.0,0.17389271]
[1724847951226,0.09770995,60184.0,60183.0,0.00773371]
[1724847951432,0.09470995,60184.0,60183.0,0.00773371]
[1724847951605,0.09470995,60184.0,60182.0,0.166162]
[1724847951908,0.09470995,60184.0,60183.0,0.00773371]
[1724847952561,0.09470995,60184.0,60183.0,0.00973371]
[1724847952759,0.09470995,60184.0,60183.0,0.00773371]
[1724847953114,0.09470995,60184.0,60183.0,0.001]
[1724847953317,0.09470995,60184.0,60183.0,0.00873371]
[1724847953517,0.09470995,60184.0,60182.0,0.166161]
[1724847953722,0.09470995,60184.0,60183.0,0.00773371]
[1724847953922,0.09770995,60184.0,60183.0,0.00773371]
[1724847954350,0.09470995,60184.0,60183.0,0.00773371]
[1724847954784,0.09770995,60184.0,60183.0,0.00773371]
[1724847955131,0.09770995,60184.0,60181.0,0.166165]
[1724847955323,0.09770995,60184.0,60183.0,0.00772076]
[1724847955530,0.09770995,60184.0,60182.0,0.166162]
[1724847955770,0.09770995,60184.0,60183.0,0.00772076]
[1724847956212,0.09470995,60184.0,60183.0,0.00772076]
[1724847956564,0.09770995,60184.0,60183.0,0.00772076]
[1724847957696,0.02905085,60184.0,60183.0,0.17387976]
[1724847957852,0.02905085,60184.0,60183.0,0.83851776]
[1724847958055,0.003,60184.0,60183.0,1.17083676]
[1724847958710,0.003,60184.0,60183.0,0.83851776]
[1724847959269,0.0025591,60191.0,60188.0,0.166145]
[1724847959512,0.28620338,60189.0,60187.0,0.166148]
[1724847959715,0.0601,60187.0,60183.0,0.338319]
[1724847959867,0.001,60184.0,60183.0,0.838797]
[1724847960080,0.001,60184.0,60183.0,0.832797]
[1724847960491,0.001,60184.0,60183.0,0.830797]
[1724847960697,0.0025591,60186.0,60185.0,0.83077]
[1724847961470,0.02942864,60186.0,60185.0,0.83849076]
[1724847961889,0.0033791,60186.0,60185.0,0.83849076]
[1724847962360,0.0033791,60186.0,60185.0,0.50618276]
[1724847962777,0.0033791,60186.0,60185.0,0.51018276]
[1724847963705,0.0033791,60186.0,60185.0,0.50618276]
[1724847963909,0.0043791,60186.0,60185.0,0.50818276]
[1724847964126,0.0033791,60186.0,60185.0,0.50918276]
[1724847964379,0.00082,60186.0,60185.0,0.84149076]
[1724847964615,0.00182,60186.0,60185.0,0.58658276]
[1724847965983,0.00182,60186.0,60185.0,0.91889076]
[1724847971935,0.00182,60186.0,60185.0,0.17887476]
[1724847971936,0.08502,60186.0,60185.0,0.17887476]
[1724847972133,0.08502,60186.0,60185.0,0.01272076]
[1724847972134,0.15142,60186.0,60185.0,0.01272076]
[1724847972540,0.6524331,60186.0,60185.0,0.01272076]
[1724847972998,0.3201301,60186.0,60185.0,0.005]
[1724847973441,0.3201301,60186.0,60185.0,0.002]
[1724847973905,0.166154,60185.0,60182.0,0.166161]
[1724847974108,0.28620338,60183.0,60181.0,0.166165]
[1724847974314,0.0025591,60182.0,60181.0,0.166165]
[1724847974519,0.0025591,60182.0,60181.0,0.498495]
[1724847974743,0.02860973,60183.0,60182.0,0.166162]
[1724847974962,0.02605063,60183.0,60182.0,0.166162]
[1724847975413,0.02605063,60183.0,60182.0,0.830812]
[1724847976289,0.02605063,60183.0,60182.0,0.83849405]
[1724847976538,0.02605063,60183.0,60182.0,1.17081905]
[1724847976750,0.02705063,60183.0,60182.0,1.17281905]
[1724847976976,0.02705063,60183.0,60182.0,1.17081905]
[1724847977197,0.02705063,60183.0,60182.0,1.17481905]
[1724847977404,0.02805063,60183.0,60182.0,1.17481905]
[1724847977682,0.02805063,60183.0,60182.0,1.17281905]
[1724847978080,0.02805063,60183.0,60182.0,1.17781905]
[1724847980963,0.002,60183.0,60182.0,1.17781905]
[1724847984604,0.02804916,60183.0,60182.0,1.17781905]
[1724847985675,0.02804916,60183.0,60182.0,1.26051905]
[1724847986721,0.02804916,60183.0,60182.0,0.84549405]
[1724847986900,0.02886916,60183.0,60182.0,0.84549405]
[1724847987688,0.17046916,60183.0,60182.0,0.84549405]
[1724847988870,0.17046916,60183.0,60182.0,0.01468205]
[1724847989186,0.17046916,60183.0,60177.0,0.0009009]
[1724847989187,0.891167,60178.0,60177.0,0.0009009]
[1724847989400,0.966867,60178.0,60177.0,0.0009009]
[1724847990451,0.975867,60178.0,60177.0,0.0009009]
[1724847991488,0.986867,60178.0,60177.0,0.0019009]
[1724847992763,1.15541864,60178.0,60177.0,0.0019009]
[1724847993604,0.986867,60178.0,60177.0,0.0019009]
[1724847997381,0.311173,60178.0,60177.0,0.0009009]
[1724847997597,0.311173,60178.0,60177.0,0.5813289]
[1724847997598,0.0115591,60178.0,60177.0,0.5813289]
[1724847997828,0.011,60178.0,60177.0,0.5823289]
[1724847998045,0.019,60178.0,60177.0,0.9146809]
[1724847998534,0.008,60178.0,60177.0,0.9136809]
[1724847998780,0.008,60178.0,60177.0,0.5813289]
[1724847998990,0.0025591,60182.0,60178.0,0.161173]
[1724847999884,0.0025591,60182.0,60179.0,0.166169]
[1724848000347,0.0791,60181.0,60177.0,0.0019009]
[1724848000594,0.64302,60178.0,60177.0,0.0009009]
[1724848000833,0.1395,60178.0,60177.0,0.0009009]
[1724848001077,0.1420591,60178.0,60177.0,0.0009009]
[1724848001744,0.1420591,60178.0,60177.0,0.0019009]
[1724848002201,0.1420591,60178.0,60177.0,0.0009009]
[1724848002202,0.1450591,60178.0,60177.0,0.0009009]
[1724848002425,0.1500591,60178.0,60177.0,0.0009009]
[1724848002642,0.3162321,60178.0,60177.0,0.0009009]
[1724848002864,0.9859261,60178.0,60177.0,0.0009009]
[1724848005874,0.6535791,60178.0,60177.0,0.0009009]
[1724848006120,0.1500591,60178.0,60177.0,0.0009009]
[1724848007718,0.0709591,60178.0,60177.0,0.0009009]
[1724848008632,0.0105591,60178.0,60177.0,0.0009009]
[1724848009516,0.0105591,60178.0,60177.0,0.1670769]
[1724848009736,0.008,60178.0,60177.0,0.4994289]
[1724848010193,0.0105591,60178.0,60177.0,0.4994289]
[1724848010641,0.0105591,60178.0,60177.0,0.8317809]
[1724848011073,0.008,60178.0,60177.0,0.8317809]
[1724848011684,0.008,60178.0,60177.0,0.4994289]
[1724848016847,0.008,60178.0,60177.0,0.9776809]
[1724848017258,0.008,60178.0,60177.0,1.3100329]
[1724848017729,0.003,60178.0,60177.0,1.3100329]
[1724848017934,0.0025591,60180.0,60179.0,0.830852]
[1724848018143,0.0033781,60182.0,60181.0,0.166165]
[1724848018357,0.0033781,60182.0,60181.0,0.498495]
[1724848019620,0.0043781,60182.0,60181.0,0.502495]
[1724848020751,0.0043781,60182.0,60181.0,0.505495]
[1724848021215,0.0043781,60182.0,60181.0,0.837825]
[1724848021421,0.0043781,60182.0,60181.0,0.505495]
[1724848021836,0.0033781,60182.0,60181.0,0.501495]
[1724848022054,0.0033781,60182.0,60181.0,0.833825]
[1724848022296,0.0033781,60182.0,60181.0,0.919525]
[1724848022507,0.0033781,60182.0,60181.0,1.251855]
[1724848022508,0.000819,60182.0,60181.0,1.251855]
[1724848023150,0.000819,60182.0,60181.0,1.248855]
[1724848023362,0.000819,60182.0,60181.0,1.245855]
[1724848023587,0.000819,60182.0,60181.0,1.246855]
[1724848024048,0.000819,60182.0,60181.0,1.245855]
[1724848024472,0.000819,60182.0,60181.0,1.248855]
[1724848024896,0.000819,60182.0,60181.0,1.245855]
[1724848025112,0.001819,60182.0,60181.0,1.249855]
[1724848025320,0.002819,60182.0,60181.0,1.256855]
[1724848025521,0.001819,60182.0,60181.0,1.252855]
[1724848025935,0.002819,60182.0,60181.0,1.256855]
[1724848026159,0.001819,60182.0,60181.0,1.252855]
[1724848026580,0.001819,60182.0,60181.0,1.249855]
[1724848026786,0.002819,60182.0,60181.0,1.257855]
[1724848046380,0.02020534,60182.0,60181.0,1.257855]
[1724848047942,0.02020534,60182.0,60181.0,1.651385]
[1724848048151,0.002819,60182.0,60181.0,2.53570836]
[1724848048325,1e-06,60182.0,60181.0,2.73916913]
[1724848048532,1e-06,60183.0,60182.0,1.326537]
[1724848048736,1e-06,60183.0,60182.0,2.41998281]
[1724848048942,0.02604504,60197.0,60185.0,1.180078]
[1724848049214,0.02604504,60197.0,60196.0,0.973417]
[1724848049436,0.02604504,60197.0,60196.0,2.18482136]
[1724848050047,0.02604504,60197.0,60196.0,2.070158]
[1724848050682,0.02704504,60197.0,60196.0,2.084158]
[1724848051967,0.02704504,60197.0,60196.0,2.098158]
[1724848052416,0.02704504,60197.0,60196.0,2.11179254]